{"text_format":"1","workbook":"xlsx","n_sheets":2,"sheets":["Fall","Background"],"not_rendered":{"charts":0,"images":2,"macros":1,"external_links":0,"defined_names":1,"comments":0,"pivot_tables":0},"unopened":[],"bounds":{"document_bytes":16777216,"sheet_cells":100000,"rows_first":2000,"rows_last":500,"rows_between":2000,"halvings":0,"cell_chars":16384,"cell_head_chars":4096},"cells_cut":0,"cells_raw":0,"read":"whole","date_system":"1900"}

{"sheet":"Fall","index":0,"n_rows":30,"n_cols":24,"rows_kept":30,"cut":false,"hidden":false,"merged":[[0,16,0,27],[0,0,0,14],[1,0,1,6],[1,8,1,11],[1,13,1,14],[2,0,2,6],[2,8,2,11],[2,13,2,14],[15,1,15,13],[4,0,4,6],[4,8,4,11],[4,13,4,14],[5,0,5,6],[5,8,5,11],[5,13,5,14],[7,1,7,14],[12,0,12,5],[12,8,12,13],[13,0,13,5],[13,8,13,13],[16,1,16,13],[17,0,17,14],[18,0,18,14],[19,1,19,2],[19,4,19,6],[19,8,19,10],[19,12,19,14],[10,17,12,27],[14,17,14,18],[14,19,14,20],[14,21,14,22],[14,23,14,24],[15,17,15,18],[15,19,15,20],[15,21,15,22],[15,23,15,24],[16,17,16,18],[16,19,16,20],[16,21,16,22],[16,23,16,24],[1,15,1,27],[3,17,5,26],[7,17,8,27],[28,21,28,22],[28,23,28,24],[28,19,28,20],[26,21,26,22],[26,23,26,24],[27,21,27,22],[27,23,27,24],[27,19,27,20],[26,19,26,20],[25,23,25,24],[25,21,25,22],[25,19,25,20],[17,23,17,24],[18,17,18,18],[18,19,18,20],[18,21,18,22],[18,23,18,24],[30,0,30,14],[31,0,31,14],[17,17,17,18],[17,19,17,20],[17,21,17,22],[25,17,25,18],[22,17,23,27],[19,21,19,22],[19,23,19,24],[19,17,19,18],[19,19,19,20],[22,11,22,12],[25,1,25,10],[25,11,25,13],[26,1,26,10],[26,11,26,13],[20,17,20,18],[20,19,20,20],[20,21,20,22],[20,23,20,24],[29,0,29,14],[20,4,20,5],[20,6,20,10],[21,8,21,9],[22,5,22,6],[22,7,22,8],[22,9,22,10]]}
["Traditional MS/ K8 Sports Coordinator Paysheet",null,null,null,null,null,null,null,null,null,null,null,null,null,null,null,"Traditional MS/ K8 Sports Coordinator Paysheet"]
["Name of Employee",null,null,null,null,null,null,null,"Employee ID#",null,null,null,null,"Phone Number",null,"2021-2022 Academic Year"]
[]
[null,null,null,null,null,null,null,null,null,null,null,null,null,null,null,null,"1.) ","Required Hiring Paperwork - All paid Sports Coordinators are required to complete an online application and submit the required hiring paperwork to the Youth Sports Office at least three (3) weeks prior to the start of the season."]
["Email Address",null,null,null,null,null,null,null,"School",null,null,null,null,"Season"]
[null,null,null,null,null,null,null,null,null,null,null,null,null,"FALL 2021"]
[]
["Team #1","Select Number of Teams Here",null,null,null,null,null,null,null,null,null,null,null,null,null,null,"2.)","Signatures - The Sports Coordinator pay sheet must be signed off by the Sports Coordinator and the Principal. If a signature is missing, the pay sheet will be returned to the school and pay will be delayed. Digital signatures are acceptable. "]
["SUN\n10/17","MON\n10/18","TUE\n10/19","WED\n10/20","THU\n10/21","FRI\n10/22","SAT\n10/23","SUN \n10/24","MON\n10/25","TUE\n10/26","WED\n10/27","THU\n10/28","FRI\n10/29","SAT\n10/30","TOTAL"]
[{"$f":"IF(B8=Background!A1,0,IF(B8=Background!A2,0,IF(B8=Background!A3,0,IF(B8=Background!A4,0,IF(B8=Background!A5,0,IF(B8=Background!A6,0,0))))))","v":0},{"$f":"IF(B8=Background!A1,0,IF(B8=Background!A2,2,IF(B8=Background!A3,2,IF(B8=Background!A4,0,IF(B8=Background!A5,0,IF(B8=Background!A6,4,0))))))","v":0},{"$f":"IF(B8=Background!A1,0,IF(B8=Background!A2,2,IF(B8=Background!A3,2,IF(B8=Background!A4,2,IF(B8=Background!A5,4,IF(B8=Background!A6,4,0))))))","v":0},{"$f":"IF(B8=Background!A1,2,IF(B8=Background!A2,2,IF(B8=Background!A3,2,IF(B8=Background!A4,4,IF(B8=Background!A5,4,IF(B8=Background!A6,4,0))))))","v":0},{"$f":"IF(B8=Background!A1,2,IF(B8=Background!A2,2,IF(B8=Background!A3,2,IF(B8=Background!A4,4,IF(B8=Background!A5,4,IF(B8=Background!A6,4,0))))))","v":0},{"$f":"IF(B8=Background!A1,2,IF(B8=Background!A2,2,IF(B8=Background!A3,2,IF(B8=Background!A4,4,IF(B8=Background!A5,4,IF(B8=Background!A6,4,0))))))","v":0},{"$f":"IF(B8=Background!A1,3,IF(B8=Background!A2,3.5,IF(B8=Background!A3,5.75,IF(B8=Background!A4,4,IF(B8=Background!A5,4.25,IF(B8=Background!A6,4.75,0))))))","v":0},{"$f":"IF(B8=Background!A1,0,IF(B8=Background!A2,0,IF(B8=Background!A3,0,IF(B8=Background!A4,0,IF(B8=Background!A5,0,IF(B8=Background!A6,0,0))))))","v":0},{"$f":"IF(B8=Background!A1,0,IF(B8=Background!A2,2,IF(B8=Background!A3,2,IF(B8=Background!A4,0,IF(B8=Background!A5,0,IF(B8=Background!A6,4,0))))))","v":0},{"$f":"IF(B8=Background!A1,0,IF(B8=Background!A2,2,IF(B8=Background!A3,2,IF(B8=Background!A4,2,IF(B8=Background!A5,4,IF(B8=Background!A6,4,0))))))","v":0},{"$f":"IF(B8=Background!A1,2,IF(B8=Background!A2,2,IF(B8=Background!A3,2,IF(B8=Background!A4,4,IF(B8=Background!A5,4,IF(B8=Background!A6,4,0))))))","v":0},{"$f":"IF(B8=Background!A1,2,IF(B8=Background!A2,2,IF(B8=Background!A3,2,IF(B8=Background!A4,4,IF(B8=Background!A5,4,IF(B8=Background!A6,4,0))))))","v":0},{"$f":"IF(B8=Background!A1,2,IF(B8=Background!A2,2,IF(B8=Background!A3,2,IF(B8=Background!A4,4,IF(B8=Background!A5,4,IF(B8=Background!A6,4,0))))))","v":0},{"$f":"IF(B8=Background!A1,3,IF(B8=Background!A2,3.5,IF(B8=Background!A3,5.75,IF(B8=Background!A4,4,IF(B8=Background!A5,4.25,IF(B8=Background!A6,4.75,0))))))","v":0},{"$f":"SUM(A10:N10)","v":0}]
[null,null,null,null,null,null,null,null,null,null,null,null,null,null,null,null,"3.)","Pay Rates - Pay rate for Middle School  Sports Coordinators  will coincide with the number of teams your school supports per season. Sports Coordinators will not be paid for teams (including special event teams) that do not complete the current season. "]
[]
[]
["SPORTS COORDINATOR SIGNATURE",null,null,null,null,null,"DATE",null,"PRINCIPAL SIGNATURE",null,null,null,null,null,"DATE"]
[null,null,null,null,null,null,null,null,null,null,null,null,null,null,null,null,null,"# OF TEAMS PER SEASON",null,"TOTAL NUMBER OF PAID HOURS",null,"RATE PER HOURS",null,"FALL SPORTS                  9 WEEKS"]
[null,"FALL FORM DEADLINE: OCTOBER 26, 2021",null,null,null,null,null,null,null,null,null,null,null,null,null,null,null,1,null,18,null,16.75,null,{"$f":"V16*T16","v":301.5}]
[null,"SUBMIT FOR FALL 2021 SPORTS SEASON ONLY",null,null,null,null,null,null,null,null,null,null,null,null,null,null,null,2,null,27,null,16.75,null,{"$f":"V17*T17","v":452.25}]
["IMPORTANT, Must have Sports Coordinator and/or Principal signature, before sending to the Youth Sports Office for approval. Missing information",null,null,null,null,null,null,null,null,null,null,null,null,null,null,null,null,3,null,31.5,null,16.75,null,527.625]
["will delay payment, such as, but not limited to, missing parts to the application and background check.  Rejection of applicant voids this pay sheet.",null,null,null,null,null,null,null,null,null,null,null,null,null,null,null,null,4,null,36,null,16.75,null,603]
[null,"FOR OFFICE USE ONLY",null,null,"FOR OFFICE USE ONLY",null,null,null,"FOR OFFICE USE ONLY",null,null,null,"FOR OFFICE USE ONLY",null,null,null,null,5,null,40.5,null,16.75,null,678.375]
[null,null,null,null,"Date Range:",null,null,null,null,null,null,null,null,null,null,null,null,"6+",null,49.5,null,16.75,null,829.125]
[null,null,null,null,null,null,null,null,"Circle Season"]
[null,"RMS-0-0-PRC-",null,"-EWCH5401",null,"Fall",null,"Winter #1",null,"Winter #2",null,"Spring",null,null,null,null,"4.)","Sports Coordinator Pay Sheet Deadlines - See the chart below for due date and payment dates. Pay sheets submitted after the deadline will be processed the following pay period. "]
[]
[]
[null,null,null,null,null,null,null,null,null,null,null,null,null,null,null,null,null,"Season",null,"Pay Period",null,"Pay Sheet Due Date",null,"Tentive Pay Date"]
[null,"YOUTH SPORTS SUPERVISOR SIGNATURE",null,null,null,null,null,null,null,null,null,"DATE",null,null,null,null,null,"Fall Sports",null,1,null,"2021-10-26",null,"2021-11-12"]
[null,null,null,null,null,null,null,null,null,null,null,null,null,null,null,null,null,"Winter Sports ",null,2,null,"2022-03-02",null,"2022-03-18"]
[null,null,null,null,null,null,null,null,null,null,null,null,null,null,null,null,null,"Spring Sports",null,3,null,"2022-05-25",null,"2022-06-10"]
["All Pay Sheets must be submitted online at http://tinyurl.com/Paysheet-YS"]

{"sheet":"Background","index":1,"n_rows":7,"n_cols":1,"rows_kept":7,"cut":false,"hidden":true,"merged":[]}
["1 Team"]
["2 Teams"]
["3 Teams"]
["4 Teams"]
["5 Teams"]
["6+ Teams"]
["Select Number of Teams Here"]